bitfinex/quotes_SOLUSD_20250721
["timestamp","ask_amount","ask_price","bid_price","bid_amount"]
[1753058543245,0.06,179.28,179.27,178.25346213]
[1753058543448,0.06,179.28,179.27,181.7815727]
[1753058544341,0.06,179.28,179.27,178.25346213]
[1753058544548,0.06,179.28,179.27,181.7815727]
[1753058546165,0.06,179.28,179.27,113.5]
[1753058546336,3.58811057,179.28,179.27,87.5]
[1753058546542,4.27811057,179.28,179.27,127.68]
[1753058546743,0.75,179.28,179.27,127.68]
[1753058546950,0.06,179.28,179.27,127.68]
[1753058547235,0.06,179.28,179.27,87.5]
[1753058547236,4.27811057,179.28,179.27,87.5]
[1753058547849,0.06,179.28,179.27,127.68]
[1753058548140,4.27811057,179.28,179.27,127.68]
[1753058548859,3.58811057,179.28,179.27,127.68]
[1753058549363,4.27811057,179.28,179.27,87.5]
[1753058549660,7.80622114,179.28,179.24,40.18]
[1753058549844,3.52811057,179.25,179.23,40.18]
[1753058550051,4.21811057,179.24,179.23,40.18]
[1753058550975,4.21811057,179.24,179.22,66.18]
[1753058551265,0.06,179.28,179.22,66.18]
[1753058551441,3.52811057,179.24,179.22,66.18]
[1753058551945,3.52811057,179.23,179.22,66.18]
[1753058552136,4.23811057,179.23,179.21,0.03]
[1753058552334,4.23811057,179.22,179.21,0.03]
[1753058553434,24.55090511,179.22,179.2,0.03]
[1753058553752,4.23811057,179.21,179.2,0.03]
[1753058553948,7.76622114,179.21,179.2,0.03]
[1753058554274,4.23811057,179.21,179.2,0.03]
[1753058555149,6.46223795,179.21,179.2,0.03]
[1753058556077,12.0422837,179.21,179.2,0.03]
[1753058556248,17.79452165,179.21,179.2,0.03]
[1753058556443,12.0422837,179.21,179.2,0.03]
[1753058557577,6.46223795,179.21,179.2,0.03]
[1753058558670,12.0422837,179.21,179.2,0.03]
[1753058558869,17.79452165,179.21,179.16,0.03]
[1753058559081,5.75223795,179.19,179.16,0.03]
[1753058559373,5.75223795,179.17,179.16,0.03]
[1753058559761,6.46223795,179.17,179.16,0.03]
[1753058560557,12.04352946,179.17,179.16,0.03]
[1753058561450,6.46223795,179.17,179.16,0.03]
[1753058562661,28.82821343,179.17,179.16,0.03]
[1753058562858,28.82821343,179.17,179.12,0.03]
[1753058562859,16.78468397,179.16,179.12,0.03]
[1753058563060,5.75223795,179.13,179.12,0.03]
[1753058563565,6.46223795,179.13,179.12,0.03]
[1753058563963,16.78468397,179.12,179.07,0.03]
[1753058564166,5.75223795,179.08,179.07,0.03]
[1753058564562,5.75223795,179.09,179.07,0.03]
[1753058564758,5.75223795,179.08,179.07,0.71]
[1753058564969,0.71,179.15,179.07,88.21]
[1753058565273,5.75223795,179.13,179.09,6.3964]
[1753058565574,5.75223795,179.14,179.1,0.68]
[1753058565788,5.75223795,179.14,179.11,0.68]
[1753058566084,5.75223795,179.16,179.12,40.88]
[1753058566284,5.75223795,179.15,179.12,40.88]
[1753058566861,5.75223795,179.15,179.12,40.2]
[1753058567062,5.75223795,179.16,179.13,0.68]
[1753058567384,5.75223795,179.17,179.14,0.68]
[1753058568251,5.75223795,179.17,179.15,0.68]
[1753058568691,5.75223795,179.18,179.14,5.58196969]
[1753058568899,5.75223795,179.21,179.16,46.63223795]
[1753058569189,5.75223795,179.22,179.17,0.68]
[1753058569358,5.75223795,179.22,179.17,87.5]
[1753058569560,5.75223795,179.22,179.18,0.68]
[1753058569803,5.75223795,179.21,179.18,0.68]
[1753058570279,6.46223795,179.2,179.17,87.5]
[1753058570586,5.75223795,179.2,179.17,88.18]
[1753058571096,5.75223795,179.21,179.17,88.18]
[1753058573009,5.75223795,179.22,179.18,0.68]
[1753058573161,5.75223795,179.22,179.19,40.88]
[1753058575575,5.75223795,179.23,179.2,0.68]
[1753058575973,0.06,179.24,179.19,40.2]
[1753058576202,5.75223795,179.23,179.2,0.68]
[1753058576566,0.06,179.24,179.21,0.68]
[1753058576882,0.06,179.24,179.22,40.2]
[1753058577887,3.52752151,179.23,179.22,40.2]
[1753058578691,0.06,179.24,179.22,44.40752151]
[1753058578880,0.06,179.24,179.23,4.76546381]
[1753058579080,0.06,179.24,179.23,118.26546381]
[1753058579423,0.06,179.24,179.23,117.70752151]
[1753058580074,0.06,179.24,179.23,119.75942308]
[1753058580596,4.29752151,179.24,179.15,87.5]
[1753058580804,3.52752151,179.16,179.15,40.2]
[1753058581415,3.52752151,179.16,179.13,93.5016]
[1753058581570,3.52752151,179.19,179.09,93.6515]
[1753058581571,3.52752151,179.14,179.09,93.6515]
[1753058581786,3.52752151,179.19,179.08,40.32]
[1753058581787,3.52752151,179.1,179.08,40.32]
[1753058581988,4.21752151,179.09,179.07,0.03]
[1753058582339,3.52752151,179.08,179.07,0.03]
[1753058582628,4.21752151,179.08,179.07,0.03]
[1753058582846,4.21752151,179.08,179.06,0.2]
[1753058583005,4.21752151,179.07,179.06,0.2]
[1753058583200,23.23943629,179.07,179.03,0.2]
[1753058583404,5.76475232,179.04,179.03,0.2]
[1753058583798,6.45475232,179.04,179.03,0.2]
[1753058584421,12.04009637,179.04,179.03,0.2]
[1753058585022,0.69,179.07,179.03,0.2]
[1753058585215,5.76475232,179.04,179.03,87.7]
[1753058585541,6.45475232,179.04,179.03,87.7]
[1753058585819,6.45475232,179.04,179.03,0.2]
[1753058586200,12.04009637,179.04,179.03,0.2]
[1753058586815,54.82478034,179.04,179.03,0.2]
[1753058587596,38.04009637,179.04,179.03,0.2]
[1753058589596,16.78468397,179.03,179.01,0.2]
[1753058589905,5.76475232,179.02,179.01,0.2]
[1753058590091,6.45475232,179.02,179.01,0.2]
[1753058590529,5.76475232,179.02,179.01,0.2]
[1753058590705,5.76475232,179.04,179.01,0.2]
[1753058590913,5.76475232,179.04,179.01,0.91]
[1753058591303,13.95559118,179.14,179.02,26.71]
[1753058591520,172.85900928,179.3,179.02,26.71]
[1753058591521,0.69,179.1,179.03,6.47475232]
[1753058591703,5.76475232,179.08,179.04,0.71]
[1753058592017,5.76475232,179.08,179.03,5.76475232]
[1753058592018,5.76475232,179.08,179.05,0.71]
[1753058592506,5.76475232,179.08,179.03,5.76475232]
[1753058592715,5.76475232,179.08,179.06,0.71]
[1753058593123,6.45475232,179.07,179.01,66.64]
[1753058593297,5.76475232,179.02,179.01,66.64]
[1753058593499,5.76475232,179.02,179.01,40.64]
[1753058593733,5.76475232,179.04,179.01,40.64]
[1753058593939,0.69,179.17,179.04,16.78468397]
[1753058594101,5.76475232,179.15,179.1,5.76475232]
[1753058594305,5.76475232,179.15,179.11,26.71]
[1753058594806,50.52,179.24,179.14,5.76475232]
[1753058594807,5.76475232,179.19,179.14,5.76475232]
[1753058595007,5.76475232,179.17,179.13,8.1083]
[1753058595219,5.76475232,179.17,179.13,8.8183]
[1753058596113,5.76475232,179.14,179.11,26.0]
[1753058596312,5.76475232,179.12,179.05,0.71]
[1753058596609,0.69,179.13,179.05,0.71]
[1753058596610,5.76475232,179.08,179.05,0.71]
[1753058597228,5.76475232,179.09,179.05,0.71]
[1753058597426,5.76475232,179.09,179.06,0.71]
[1753058597715,5.76475232,179.1,179.06,0.71]
[1753058598109,5.76475232,179.09,179.06,0.71]
[1753058598318,5.76475232,179.09,179.04,66.42]
[1753058598517,5.76475232,179.09,179.04,67.13]
[1753058598819,5.76475232,179.09,179.05,0.71]
[1753058599011,5.76475232,179.1,179.06,0.71]
[1753058599428,5.76475232,179.09,179.06,0.71]
[1753058599944,5.76475232,179.1,179.06,88.21]
[1753058600845,0.06,179.14,179.06,87.5]
[1753058600846,5.76475232,179.07,179.06,87.5]
[1753058601011,6.45475232,179.07,179.04,87.5]
[1753058601211,5.76475232,179.07,179.04,87.5]
[1753058602551,0.69,179.1,179.04,87.5]
[1753058602742,5.76475232,179.07,179.04,87.5]
[1753058603829,5.58374363,179.1,179.04,87.5]
[1753058603830,5.76475232,179.05,179.04,87.5]
[1753058604022,6.45475232,179.05,179.04,87.5]
[1753058604220,0.69,179.05,179.04,87.5]
[1753058604443,5.76475232,179.05,179.04,87.5]
[1753058605318,5.76475232,179.09,179.04,93.97475232]
[1753058605530,5.76475232,179.09,179.04,93.26475232]
[1753058605730,5.76475232,179.09,179.05,0.71]
[1753058605932,5.76475232,179.08,179.03,5.79475232]
[1753058606158,5.76475232,179.08,179.03,0.74]
[1753058606159,6.45475232,179.08,179.03,0.74]
[1753058606476,5.76475232,179.07,179.03,0.03]
[1753058606754,5.76475232,179.05,179.03,0.03]
[1753058607068,0.69,179.07,179.03,0.03]
[1753058607230,5.58316118,179.11,179.03,0.03]
[1753058607427,5.76475232,179.06,179.03,0.03]
[1753058607752,5.76475232,179.04,179.03,0.03]
[1753058608120,6.45475232,179.04,179.03,0.03]
[1753058609435,12.04009637,179.04,179.03,0.03]
[1753058609854,6.45475232,179.04,179.03,0.03]
[1753058610328,12.04009637,179.04,179.03,0.03]
[1753058611355,6.45475232,179.04,179.03,0.03]
[1753058611666,5.76475232,179.06,179.03,0.03]
[1753058612280,5.58426875,179.08,179.03,0.03]
[1753058612281,5.76475232,179.04,179.03,0.03]
[1753058612796,6.48475232,179.04,179.03,0.03]
[1753058612957,12.07009637,179.04,179.03,0.03]
[1753058614556,28.85478034,179.04,179.03,0.03]
[1753058614878,95.23478034,179.04,179.03,0.03]
[1753058615175,42.78468397,179.02,179.01,0.2]
[1753058615382,48.54943629,179.02,179.01,0.2]
[1753058615684,49.26943629,179.02,179.01,0.2]
[1753058616974,89.49065201,179.02,179.01,0.2]
[1753058617382,95.25540433,179.02,179.01,0.2]
[1753058619682,89.49065201,179.02,179.01,0.2]
[1753058619980,95.25540433,179.02,179.01,0.2]
[1753058620680,26.0,178.98,178.97,0.2]
[1753058620868,22.54943629,178.94,178.93,0.2]
[1753058621066,68.59790169,178.94,178.93,0.2]
[1753058621361,69.31790169,178.94,178.93,0.2]
[1753058621549,6.48475232,178.94,178.93,0.2]
[1753058621750,26.0,179.0,178.93,0.2]
[1753058621983,5.76475232,178.97,178.93,0.86]
[1753058622279,5.76475232,178.95,178.93,0.2]
[1753058622785,41.2,178.99,178.93,5.96475232]
[1753058622957,5.76475232,178.96,178.94,0.66]
[1753058623161,5.76475232,178.96,178.93,0.2]
[1753058623485,46.78701131,178.99,178.95,6.0915]
[1753058623486,5.76475232,178.98,178.95,6.0915]
[1753058623691,5.76475232,178.98,178.95,6.7515]
[1753058623989,5.76475232,179.03,178.97,5.76475232]
[1753058624159,5.76475232,179.05,179.0,5.76475232]
[1753058624487,5.76475232,179.05,179.01,0.66]
[1753058624656,5.76475232,179.05,178.99,1.5496]
[1753058624657,5.76475232,179.03,178.99,1.5496]
[1753058624988,5.76475232,179.03,179.0,0.66]
[1753058625294,5.76475232,179.03,178.99,1.5496]
[1753058625295,5.76475232,179.01,178.99,1.5496]
[1753058625467,5.76475232,179.0,178.94,2.2055]
[1753058625659,5.76475232,178.99,178.96,0.66]
[1753058625866,5.76475232,179.03,178.98,5.76475232]
[1753058626072,5.76475232,179.03,178.99,0.66]
[1753058626270,5.76475232,179.02,178.96,5.76475232]
[1753058626485,5.76475232,179.02,178.97,0.66]
[1753058626670,5.76475232,179.02,178.98,0.66]
[1753058627280,5.76475232,179.01,178.99,0.66]
[1753058627472,5.76475232,179.02,179.0,0.66]
[1753058627857,5.76475232,179.02,178.98,0.66]
[1753058628087,5.76475232,179.01,178.95,11.85625232]
[1753058628270,5.76475232,178.99,178.95,6.0915]
[1753058628472,5.76475232,179.0,178.96,0.66]
[1753058628875,5.76475232,179.0,178.97,0.66]
[1753058629489,5.76475232,179.0,178.98,0.66]
[1753058630085,5.76475232,179.0,178.95,6.7515]
[1753058630275,5.76475232,179.0,178.96,0.66]
[1753058630468,5.76475232,179.0,178.97,0.66]
[1753058630664,5.76475232,179.0,178.98,0.66]
[1753058631609,41.32,179.06,178.99,0.66]
[1753058631770,5.76475232,179.02,178.99,0.66]
[1753058632159,5.76475232,179.03,179.0,0.66]
[1753058634286,5.76475232,179.05,179.01,0.66]
[1753058634498,5.76475232,179.04,179.01,0.66]
[1753058634693,46.90474048,179.06,178.97,93.08743502]
[1753058634694,0.06,179.06,178.98,5.76475232]
[1753058634896,0.06,179.06,179.03,7.39145232]
[1753058635084,0.06,179.06,179.04,11.80065232]
[1753058635282,0.06,179.06,179.04,12.46065232]
[1753058635480,0.06,179.06,179.05,0.66]
[1753058635796,0.06,179.06,179.04,6.0359]
[1753058636103,0.06,179.06,179.04,6.6959]
[1753058636679,5.76475232,179.05,179.04,6.0359]
[1753058636890,5.82475232,179.06,179.04,6.0359]
[1753058638200,5.82475232,179.06,179.04,6.6959]
[1753058639504,5.82475232,179.06,179.04,6.0359]
[1753058640307,0.06,179.06,179.04,6.0359]
[1753058640515,0.06,179.06,179.05,6.42475232]
[1753058640673,0.06,179.06,179.05,0.66]
[1753058641278,0.06,179.06,179.05,93.92475232]
[1753058641599,0.06,179.1,179.08,26.0]
[1753058641777,0.06,179.14,179.13,6.1751]
[1753058642101,0.06,179.14,179.13,11.93985232]
[1753058642308,0.06,179.14,179.13,6.8451]
[1753058642625,0.06,179.14,179.13,12.60985232]
[1753058643076,0.06,179.14,179.13,53.26985232]
[1753058644276,0.06,179.14,179.13,146.91064392]
[1753058644573,0.06,179.14,179.13,146.35239014]
[1753058645191,0.06,179.14,179.13,140.76985232]
[1753058646087,0.06,179.14,179.13,146.35239014]
[1753058646883,0.06,179.14,179.13,135.0051]
[1753058647110,0.06,179.14,179.13,134.3351]
[1753058647294,0.06,179.14,179.13,135.0051]
[1753058648196,0.06,179.14,179.13,140.76985232]
[1753058648509,0.06,179.14,179.13,146.35239014]
[1753058649202,0.06,179.14,179.09,15.57775332]
[1753058649203,5.82475232,179.14,179.09,89.7886]
[1753058649514,5.82475232,179.14,179.1,41.27]
[1753058649719,5.76475232,179.13,179.1,41.27]
[1753058649915,0.06,179.14,179.1,41.27]
[1753058650224,5.82475232,179.14,179.11,0.67]
[1753058650505,5.76475232,179.13,179.1,40.6]
[1753058650885,5.76475232,179.13,179.1,41.27]
[1753058651634,5.76475232,179.13,179.09,115.1186]
[1753058651917,5.76475232,179.1,179.09,87.5]
[1753058652080,5.76475232,179.1,179.08,134.3922]
[1753058652280,5.76475232,179.1,179.05,89.1057]
[1753058652281,5.76475232,179.09,179.05,89.1057]
[1753058652503,5.76475232,179.08,179.05,129.7057]
[1753058652805,0.71,179.09,179.07,26.0]
[1753058652806,5.76475232,179.09,179.07,26.0]
[1753058653398,5.76475232,179.09,179.05,130.3757]
[1753058653600,5.76475232,179.09,179.05,129.7057]
[1753058653909,5.76475232,179.09,179.06,0.67]
[1753058655115,5.76475232,179.09,179.05,155.7057]
[1753058655315,5.76475232,179.09,179.05,156.3757]
[1753058655813,5.76475232,179.07,179.05,154.06]
[1753058656017,5.76475232,179.07,179.05,66.56]
[1753058656018,5.76475232,179.06,179.05,66.56]
[1753058656181,0.71,179.06,179.05,26.0]
[1753058656388,5.76475232,179.06,179.03,46.8585]
[1753058657007,5.76475232,179.07,179.03,47.5285]
[1753058657397,5.76475232,179.06,179.03,47.5285]
[1753058659301,5.76475232,179.07,179.03,47.5285]
[1753058659695,5.76475232,179.07,179.04,0.67]
[1753058660015,5.76475232,179.08,179.04,0.67]
[1753058660426,5.76475232,179.07,179.04,0.67]
[1753058661914,5.76475232,179.07,179.04,88.17]
[1753058665138,5.76475232,179.06,179.04,87.5]
[1753058665420,6.47475232,179.05,179.03,0.03]
[1753058665626,5.76475232,179.04,179.03,0.03]
[1753058666131,6.47475232,179.04,179.03,0.03]
[1753058669006,12.06009637,179.04,179.03,0.03]
[1753058669324,5.76475232,179.04,179.03,0.03]
[1753058670024,6.47475232,179.04,179.03,0.03]
[1753058670396,28.84478034,179.04,179.03,0.03]
[1753058670604,42.78468397,179.03,178.99,0.03]
[1753058670802,22.54943629,179.0,178.99,0.03]
[1753058671239,23.23943629,179.0,178.99,0.03]
[1753058671438,28.82602846,179.0,178.95,0.03]
[1753058671602,5.76475232,178.96,178.95,0.03]
[1753058672226,6.45475232,178.96,178.95,0.03]
[1753058673317,23.23943629,178.96,178.95,0.03]
[1753058673515,28.82727714,178.96,178.95,0.03]
[1753058674649,69.20727714,178.96,178.95,0.03]
[1753058675209,6.45475232,178.96,178.95,0.03]
[1753058675433,6.45475232,178.98,178.95,0.03]
[1753058675691,5.76475232,178.98,178.95,0.69]
[1753058675932,0.69,179.0,178.95,0.03]
[1753058675933,5.76475232,178.96,178.95,0.03]
[1753058676142,6.45475232,178.96,178.95,0.03]
[1753058677423,5.76475232,178.96,178.95,0.03]
[1753058678438,6.45475232,178.96,178.95,0.03]
[1753058678757,5.76475232,178.99,178.95,0.69]
[1753058678912,40.38,179.03,178.95,6.45475232]
[1753058678913,5.76475232,179.0,178.95,6.45475232]
[1753058679113,46.65566545,179.03,178.95,0.69]
[1753058679114,5.76475232,178.99,178.95,0.69]
[1753058679343,5.76475232,179.01,178.96,6.42475232]
[1753058679554,5.76475232,179.01,178.97,0.66]
[1753058679754,41.07,179.03,178.97,0.66]
[1753058679755,5.76475232,179.0,178.97,0.66]
[1753058679938,5.76475232,179.01,178.97,0.66]
[1753058680136,5.76475232,179.02,178.98,0.66]
[1753058680342,5.76475232,179.03,178.99,0.66]
[1753058680771,5.76475232,179.02,178.99,0.66]
[1753058682033,5.76475232,179.03,179.0,0.66]
[1753058682875,0.06,179.01,178.97,5.76475232]
[1753058683041,0.06,179.01,178.98,0.66]
[1753058683368,0.06,179.01,178.99,0.66]
[1753058683872,0.06,179.01,179.0,6.42475232]
[1753058685163,0.06,179.01,179.0,14.67451153]
[1753058685371,0.06,179.01,179.0,31.4591955]
[1753058685735,0.06,179.01,179.0,25.69444318]
[1753058685930,0.06,179.05,179.04,26.0]
[1753058686270,0.06,179.05,179.04,46.12475232]
[1753058686471,0.06,179.05,179.04,46.78475232]
[1753058687153,0.06,179.05,179.04,41.02]
[1753058688964,0.06,179.05,179.02,0.66]
[1753058689166,5.76475232,179.04,179.02,40.36]
[1753058689356,5.82475232,179.05,179.02,40.36]
[1753058689559,5.82475232,179.05,179.02,41.02]
[1753058689866,0.06,179.05,179.03,6.42475232]
[1753058690174,0.06,179.05,179.04,32.42475232]
[1753058690540,0.06,179.05,179.04,26.0]
[1753058690740,0.06,179.05,179.04,66.32]
[1753058691161,0.06,179.05,179.04,66.98]
[1753058691570,0.06,179.05,179.04,72.74475232]
[1753058692841,0.06,179.05,179.04,66.98]
[1753058693564,0.06,179.05,179.04,72.74475232]
[1753058693948,0.06,179.1,179.04,304.55478034]
[1753058694151,0.06,179.1,179.09,5.76475232]
[1753058694363,0.06,179.1,179.09,133.50475232]
[1753058694586,0.06,179.1,179.09,87.44]
[1753058694798,0.06,179.1,179.09,127.74]
[1753058695281,0.06,179.1,179.09,128.4]
[1753058696488,0.06,179.1,179.09,127.74]
[1753058697392,6.51475232,179.1,179.09,127.74]
[1753058697889,0.06,179.1,179.09,127.74]
[1753058698591,6.51475232,179.1,179.09,87.44]
[1753058699096,6.51475232,179.1,179.06,40.3]
[1753058699269,5.76475232,179.07,179.04,40.3]
[1753058699472,5.76475232,179.05,179.04,127.74]
[1753058700276,6.45475232,179.05,178.98,8.5156]
[1753058700488,5.76475232,179.01,178.99,40.3]
[1753058700798,5.76475232,179.03,178.99,40.96]
[1753058701006,5.76475232,179.05,179.0,0.69]
[1753058701175,0.68,179.08,179.01,40.3]
[1753058701176,5.76475232,179.06,179.01,40.3]
[1753058701371,5.76475232,179.06,179.02,0.69]
[1753058701568,5.76475232,179.05,179.02,0.69]
[1753058701769,5.76475232,179.05,179.01,40.3]
[1753058701770,5.76475232,179.03,178.98,33.8556]
[1753058701976,5.76475232,179.0,178.98,48.1556]
[1753058702486,6.44475232,178.99,178.96,40.3]
[1753058702688,5.76475232,178.97,178.96,40.3]
[1753058702907,6.44475232,178.97,178.96,40.3]
[1753058703212,5.76475232,178.97,178.96,40.3]
[1753058703410,5.76475232,178.97,178.96,26.0]
[1753058704104,5.76475232,178.98,178.96,26.0]
[1753058704301,5.76475232,178.98,178.96,66.99]
[1753058704516,5.76475232,178.98,178.96,66.3]
[1753058705085,5.76475232,178.98,178.96,66.99]
[1753058706212,16.84468397,179.05,178.97,6.45475232]
[1753058706418,5.82475232,179.05,178.99,5.76475232]
[1753058706714,0.06,179.05,179.0,46.75475232]
[1753058706886,0.06,179.05,179.01,5.76475232]
[1753058707086,5.76475232,179.02,178.96,26.0]
[1753058707403,5.76475232,178.97,178.95,0.03]
[1753058707580,5.76475232,178.96,178.95,87.47]
[1753058707780,5.76475232,179.03,178.98,26.0]
[1753058707993,5.76475232,179.03,178.99,0.69]
[1753058708591,5.76475232,179.04,179.0,0.69]
[1753058708913,5.76475232,179.04,179.0,41.05]
[1753058709602,0.06,179.05,179.02,5.76475232]
[1753058709804,0.06,179.05,179.03,46.81475232]
[1753058710417,0.06,179.05,179.03,46.12475232]
[1753058710723,0.06,179.05,179.04,0.69]
[1753058710923,0.06,179.05,179.01,32.45475232]
[1753058711097,0.06,179.05,179.03,40.34]
[1753058711897,6.50475232,179.05,179.01,26.0]
[1753058712096,5.82475232,179.05,179.03,40.32]
[1753058712422,0.06,179.05,179.04,0.69]
[1753058713323,0.06,179.05,179.04,7.01328672]
[1753058713523,0.06,179.05,179.04,6.45475232]
[1753058714709,0.06,179.05,179.04,0.69]
[1753058715323,0.06,179.05,179.04,87.5]
[1753058717127,6.50475232,179.05,179.04,87.5]
[1753058717724,6.50475232,179.05,179.02,87.5]
[1753058717907,5.76475232,179.03,179.02,87.5]
[1753058718110,0.06,179.05,179.02,87.5]
[1753058718305,5.76475232,179.04,179.02,87.5]
[1753058718516,6.44475232,179.04,179.02,127.8]
[1753058718704,0.68,179.04,179.02,127.8]
[1753058719012,5.76475232,179.04,179.02,127.8]
[1753058719204,5.76475232,179.04,179.02,87.5]
[1753058719405,5.76475232,179.03,179.02,87.5]
[1753058719724,6.44475232,179.03,179.02,87.5]
[1753058719926,6.44475232,179.03,178.98,153.8]
[1753058720099,5.76475232,178.99,178.98,153.8]
[1753058720528,5.76475232,178.99,178.98,113.5]
[1753058721229,5.76475232,178.99,178.98,87.5]
[1753058721431,6.44475232,178.99,178.97,87.5]
[1753058721732,16.84468397,179.05,178.95,0.03]
[1753058721733,6.44475232,178.98,178.95,0.03]
[1753058721910,5.76475232,178.96,178.95,0.03]
[1753058722598,6.44475232,178.96,178.95,0.03]
[1753058723203,5.76475232,178.96,178.95,0.03]
[1753058723550,5.76475232,178.98,178.95,0.72]
[1753058723708,5.76475232,179.0,178.95,0.72]
[1753058724040,5.76475232,179.03,178.98,5.76475232]
[1753058724236,5.76475232,179.03,178.99,40.3]
[1753058724606,5.76475232,179.02,178.99,40.3]
[1753058724814,5.76475232,179.0,178.96,87.5]
[1753058725130,5.76475232,178.97,178.96,87.5]
[1753058725431,5.76475232,178.97,178.95,0.03]
[1753058726510,5.76475232,178.96,178.95,0.03]
[1753058726911,6.44475232,178.96,178.95,0.03]
[1753058727861,5.76475232,178.96,178.95,0.03]
[1753058728206,0.68,178.99,178.95,0.03]
[1753058728207,5.76475232,178.97,178.95,0.03]
[1753058728634,5.76475232,178.96,178.95,0.03]
[1753058732521,5.76475232,178.97,178.95,87.53]
[1753058732733,5.76475232,178.97,178.95,88.25]
[1753058732928,5.76475232,178.97,178.95,128.55]
[1753058733139,3.53816324,178.97,178.95,128.55]
[1753058733544,3.53816324,178.98,178.95,128.55]
[1753058733846,0.7,179.01,178.95,128.55]
[1753058734047,3.53816324,178.98,178.95,128.55]
[1753058735228,3.53816324,178.98,178.95,127.83]
[1753058735416,3.53816324,178.98,178.96,0.72]
[1753058736126,0.7,179.02,178.96,0.72]
[1753058736327,3.53816324,178.99,178.96,0.72]
[1753058736523,3.53816324,178.98,178.95,127.83]
[1753058736826,3.53816324,178.97,178.95,127.83]
[1753058737019,4.23816324,178.96,178.95,87.53]
[1753058737222,4.23816324,178.96,178.95,0.03]
[1753058739248,6.46926478,178.96,178.95,0.03]
[1753058739629,28.8417896,178.96,178.95,0.03]
[1753058740224,42.78468397,178.94,178.93,0.2]
[1753058740426,16.78468397,178.93,178.91,0.03]
[1753058740649,28.14303884,178.92,178.91,0.03]
[1753058740953,16.78468397,178.91,178.89,0.03]
[1753058741126,16.78468397,178.89,178.85,0.2]
[1753058741326,16.78468397,178.87,178.85,0.2]
[1753058741640,28.32321353,178.86,178.85,0.2]
[1753058741843,29.02321353,178.86,178.85,0.2]
[1753058742059,6.46926478,178.86,178.85,0.2]
[1753058742523,5.76926478,178.86,178.85,0.2]
[1753058743049,6.46926478,178.86,178.85,0.2]
[1753058743280,12.23852956,178.86,178.85,0.2]
[1753058744148,6.46926478,178.86,178.85,0.2]
[1753058747430,12.06022978,178.86,178.85,0.2]
[1753058748030,28.84491375,178.86,178.85,0.2]
[1753058748751,28.84491375,178.86,178.84,0.03]
[1753058748752,34.61417853,178.86,178.84,0.03]
[1753058748954,22.55394875,178.84,178.83,0.2]
[1753058749433,23.25394875,178.84,178.83,0.2]
[1753058750262,48.55394875,178.82,178.81,0.2]
[1753058750432,48.55394875,178.82,178.8,0.03]
[1753058750630,6.46926478,178.81,178.8,0.03]
[1753058750826,26.0,178.82,178.8,0.03]
[1753058751142,5.76926478,178.81,178.8,0.03]
[1753058751344,0.06,178.87,178.8,0.03]
[1753058751541,5.76926478,178.85,178.81,0.72]
[1753058751843,5.76926478,178.85,178.82,0.72]
[1753058752436,5.76926478,178.84,178.8,0.03]
[1753058752652,5.76926478,178.82,178.8,0.03]
[1753058752859,45.97080914,178.87,178.8,0.03]
[1753058752860,22.55394875,178.81,178.8,0.03]
[1753058753034,23.25394875,178.81,178.8,0.03]
[1753058753756,28.84647713,178.81,178.8,0.03]
[1753058755332,28.84647713,178.81,178.72,26.03]